Cogmind - Beta 15 @@@ ROGUE MODE // 2025.08.02 @ 04:41:40 Player: Aon Result: Destroyed by S-10 Pest with Light Assault Rifle Performance ------------- Evolutions (2) 1000 Regions Visited (4) 800 Robots Destroyed (9) 45 Value Destroyed (135) 135 Prototype IDs (1) 20 Alien Tech Used (0) 0 Bonus (0) 0 TOTAL SCORE: 2000 Bonus ------- None Cogmind --------- Core Integrity 0/550 Matter 130/300 Energy 18/100 System Corruption 0% Temperature Cool (0) Movement Core (50) Location -8/Materials Parts ------- > --- POWER (1) -------- (None) > --- PROPULSION (3) --- (None) > --- UTILITY (5) ------ Signal Interpreter Utility Shielding Improved Utility Shielding > --- WEAPON (2) ------- (None) > --- INVENTORY (5) ---- Light Deuterium Engine Small Storage Unit Improved Light Cannon Peak State ------------ > --- POWER ------------ Light Deuterium Engine > --- PROPULSION ------- Flight Unit VTOL Module Improved Flight Unit > --- UTILITY ---------- Signal Interpreter Terrain Scanner ECM Suite Utility Shielding Improved Utility Shielding > --- WEAPON ----------- Improved Light Cannon > --- INVENTORY -------- Light Deuterium Engine Small Storage Unit Grenade Launcher [Rating: 18] Favorites ----------- Power Light Ion Engine Engine Light Ion Engine Propulsion Aluminum Leg Leg Aluminum Leg Flight Unit Flight Unit Utility Small Storage Unit Device Terrain Scanner Storage Small Storage Unit Processor Signal Interpreter Protection Utility Shielding Weapon Small Laser Energy Gun Small Laser Ballistic Cannon Improved Light Cannon Launcher Grenade Launcher Slashing Weapon Katana Build | -11 -10 -9 -9 -8 ------- Run | Yrd Mat Mat Sto Mat Slots Evolved 4 | . . 2 . 2 Power . | . . . . . Propulsion 1 | . . . . 1 Utility 3 | . . 2 . 1 Weapon . | . . . . . Parts Attached 23 | 6 6 4 3 4 Power 3 | 1 1 1 . . Engine 3 | 1 1 1 . . Core . | . . . . . Reactor . | . . . . . Propulsion 7 | 2 2 1 1 1 Treads . | . . . . . Leg 3 | 2 . . . 1 Wheel . | . . . . . Hover . | . . . . . Flight 4 | . 2 1 1 . Utility 8 | 1 2 1 2 2 Device 4 | . 1 1 1 1 Storage 1 | 1 . . . . Processor 1 | . . . 1 . Hackware . | . . . . . Protection 2 | . 1 . . 1 Artifact . | . . . . . Weapon 5 | 2 1 1 . 1 Energy Gun 2 | 2 . . . . Energy Cannon . | . . . . . Ballistic Gun . | . . . . . Ballistic Cannon 1 | . . 1 . . Launcher 1 | . 1 . . . Special Weapon . | . . . . . Impact Weapon . | . . . . . Slashing Weapon 1 | . . . . 1 Piercing Weapon . | . . . . . Special Melee Weapon . | . . . . . Unidentified Prototypes 1 | . . . 1 . Parts Lost 16 | . 6 . 1 9 Power 2 | . 1 . . 1 Propulsion 6 | . 2 . . 4 Utility 4 | . 1 . 1 2 Weapon 4 | . 2 . . 2 Highest Loss Streak 9 | . 6 . 1 9 To Critical Strikes . | . . . . . Average Backups 3 | 1 2 4 5 3 Power . | . . . 1 1 Propulsion . | . 1 1 1 . Utility . | . . 1 1 1 Weapon 1 | . . 1 2 1 Tool/Special . | . . . . . Unused Backups 2 | . . . 1 1 Power 1 | . . . . 1 Propulsion 1 | . . . 1 . Utility . | . . . . . Weapon . | . . . . . Tool/Special . | . . . . . Average Slot Usage (%) 74 | . 89 53 62 64 Engine 11 | . 13 11 11 6 Leg 12 | . 24 . . 1 Flight 10 | . 1 22 22 12 Device 10 | . 8 9 14 14 Storage 6 | . 14 . . . Processor 2 | . . . 4 9 Protection 7 | . . 11 11 16 Energy Gun 11 | . 24 . . . Peak Build Rating 18 | 6 7 8 12 18 Average Rating 7 | 5 6 6 9 12 On Entrance 5 | . 6 4 8 11 Naked Turns . | . . . . . Heaviest Build 14 | 10 11 7 8 14 Greatest Support 20 | 20 20 8 9 15 Greatest Overweight (x) 4 | . 2 . . 4 Average Overweight (x) . | . . . . . Largest Inventory Capacity 8 | 8 8 5 5 5 Average Capacity 6 | 7 7 5 5 5 Most Carried 5 | 2 3 5 5 4 Average Carried 3 | 1 2 4 4 3 Final Capacity 8 | 8 5 5 5 5 Final Carried 5 | 2 3 5 5 3 Class Distribution -------------------- 92% | Mutant 7% | Sprinter Dominant Class ---------------- Mutant | -10/Materials Mutant | -9/Materials Mutant | -9/Storage Mutant | -8/Materials Resources | -11 -10 -9 -9 -8 ----------- Run | Yrd Mat Mat Sto Mat Matter Collected 246 | 161 85 . . . Remotely . | . . . . . Salvage Created 184 | . 139 . . 45 Parts 16 | . 7 . . 9 Haulers Intercepted . | . . . . . Recyclers Shooed . | . . . . . Parts Field Recycled . | . . . . . Retrieved Matter . | . . . . . Parts Self-Destructed . | . . . . . Prevented . | . . . . . Kills | -11 -10 -9 -9 -8 ------- Run | Yrd Mat Mat Sto Mat Combat Hostiles Destroyed 5 | . 5 . . . Guns 5 | . 5 . . . Classes Destroyed 5 | . 2 . . 3 Worker 1 | . . . . 1 Builder 2 | . . . . 2 Mechanic 1 | . . . . 1 Swarmer 3 | . 3 . . . Grunt 2 | . 2 . . . Best Kill Streak 3 | . 3 . . 3 Combat Bots Only 3 | . 3 . . . Max Kills in Single Turn 2 | . 1 . . 2 Gunslinging . | . . . . . Exploded . | . . . . . Melee . | . . . . . Uniques/NPCs Destroyed . | . . . . . Combat | -11 -10 -9 -9 -8 -------- Run | Yrd Mat Mat Sto Mat Hostile Shots Fired 153 | . 64 2 14 73 Missed 44 | . 19 . 8 17 Hits 109 | . 45 2 6 56 Projectile 109 | . 45 2 6 56 Critical Strikes 4 | . . . 1 3 Actively Blocked 1 | . . . . 1 Damage Taken 1549 | . 566 31 84 868 Core 739 | . 135 17 32 555 Absorbed by Shields . | . . . . . Redirected to Shielding 78 | . . . 3 75 Core Remaining (%) 77 | 100 46 . 87 . Volleys Fired 28 | . 24 . . 4 Largest 2 | . 2 . . 1 Hottest 80 | . 80 . . 30 Shots Fired 46 | . 42 . . 4 Gun 42 | . 42 . . . Cannon . | . . . . . Launcher 4 | . . . . 4 Special . | . . . . . Kinetic . | . . . . . Thermal 42 | . 42 . . . Explosive 4 | . . . . 4 Electromagnetic . | . . . . . Robot Hit Streak 9 | . 9 . . 1 Robot Miss Streak 3 | . 3 . . 1 Penetration Max . | . . . . . Secondary Targets . | . . . . . Shots Hit Robots 34 | . 29 . . 5 Core Hits 18 | . 10 . . 8 Critical Kills . | . . . . . Critical Parts Destroyed . | . . . . . Critical Strikes 1 | . . . . 1 Sever 1 | . . . . 1 Melee Attacks 5 | . . . . 5 Impact . | . . . . . Slashing 5 | . . . . 5 Piercing . | . . . . . Sneak Attacks . | . . . . . Combat Hostiles . | . . . . . Follow-up Attacks . | . . . . . Damage Inflicted 673 | . 310 . . 363 Guns 310 | . 310 . . . Cannons . | . . . . . Explosions 232 | . . . . 232 Melee 130 | . . . . 130 Ramming 1 | . . . . 1 Kinetic . | . . . . . Thermal 310 | . 310 . . . Explosive 232 | . . . . 232 Electromagnetic . | . . . . . Impact . | . . . . . Slashing 130 | . . . . 130 Piercing . | . . . . . Highest Corruption . | . . . . . Average Corruption . | . . . . . Corruption Purged . | . . . . . Corruption Blocked . | . . . . . Overload Shots . | . . . . . Overflow Damage . | . . . . . Projectiles . | . . . . . Explosions . | . . . . . Melee . | . . . . . Knockbacks . | . . . . . Impact . | . . . . . Kinetic . | . . . . . Secondary . | . . . . . Self-Inflicted Damage . | . . . . . Shots . | . . . . . Rammed 1 | . . . . 1 Targets Rammed 1 | . . . . 1 Kicked . | . . . . . Crushed . | . . . . . Highest Temperature 306 | . 306 . 13 . Average Temperature 133 | . 134 . 13 . Received Heat Transfer 681 | . 261 9 42 369 Effects 1 | . 1 . . . Energy Bleed 1 | . 1 . . . Siege Activations . | . . . . . Martial Activations . | . . . . . Shielding Activations . | . . . . . Robots Disrupted . | . . . . . Combat Hostiles . | . . . . . Robots Corrupted . | . . . . . Combat Hostiles . | . . . . . Parts Fried . | . . . . . Impact Corruptions . | . . . . . Robots Melted . | . . . . . Combat Hostiles . | . . . . . Parts Melted 2 | . 2 . . . Heat Transferred 725 | . 725 . . . Parts Sabotaged . | . . . . . Parts Stolen . | . . . . . Parts Stripped . | . . . . . Power Chain Reactions . | . . . . . Alert | -11 -10 -9 -9 -8 ------- Run | Yrd Mat Mat Sto Mat Maximum Alert Level . | . . . . . Low Security (%) 100 | 100 100 100 100 100 Level 1 . | . . . . . Level 2 . | . . . . . Level 3 . | . . . . . Level 4 . | . . . . . Level 5 . | . . . . . High Security . | . . . . . Max Security . | . . . . . Peak Influence 117 | . 117 11 15 30 Initial 11 | . . 11 . . Average 15 | . 31 3 5 5 Influence Increases 233 | . 157 . 15 61 Destroy 0b10 Robot/C 100 | . 100 . . . Destroy 0b10 Robot/NC 20 | . . . . 20 Destroy Leader 20 | . 20 . . . Successful Hack 7 | . 7 . . . Destroy Structure 11 | . . . . 11 Partial Spotted 45 | . . . 15 30 Lose Combat Pursuer 30 | . 30 . . . Influence Decreases 233 | . 130 27 15 61 Entered New Map 16 | . . 16 . . Time Decay 111 | . 70 11 10 20 Lost Part 106 | . 60 . 5 41 Squads Dispatched 4 | . 1 . 1 2 Investigation 1 | . . . . 1 Extermination . | . . . . . Reinforcement 3 | . 1 . 1 1 Assault . | . . . . . Garrison . | . . . . . Intercept . | . . . . . Searches Triggered . | . . . . . Construction Impeded 1 | . . . . 1 Haulers Reinforced . | . . . . . Active Scanning Responses . | . . . . . Cargo Convoy Interrupts . | . . . . . Stealth | -11 -10 -9 -9 -8 --------- Run | Yrd Mat Mat Sto Mat Distress Signals 3 | . 1 . 1 1 Communications Jammed . | . . . . . Distress Signals . | . . . . . Times Spotted 32 | . 12 1 8 11 Peak Tracking Total 9 | . 6 1 8 9 Tactical Retreats 3 | . 1 . . 2 Traps | -11 -10 -9 -9 -8 ------- Run | Yrd Mat Mat Sto Mat Traps Triggered . | . . . . . Indirectly . | . . . . . Trap Hack Attempts . | . . . . . Triggered . | . . . . . Disarmed . | . . . . . Reprogrammed . | . . . . . Reused . | . . . . . Traps Extracted . | . . . . . Installed . | . . . . . Triggered . | . . . . . Machines | -11 -10 -9 -9 -8 ---------- Run | Yrd Mat Mat Sto Mat Machines Disabled . | . . . . . Max in Single Turn . | . . . . . Machines Repaired . | . . . . . Machines Dismantled . | . . . . . Machines Sabotaged . | . . . . . Overloaded Fab Kills . | . . . . . Hacking | -11 -10 -9 -9 -8 --------- Run | Yrd Mat Mat Sto Mat Machines Accessed 4 | . 1 . 1 2 Terminals 4 | . 1 . 1 2 Fabricators . | . . . . . Repair Stations . | . . . . . Recycling Units . | . . . . . Scanalyzers . | . . . . . Garrison Access . | . . . . . Total Hacks 6 | . 2 . 1 3 Successful 1 | . 1 . . . Failed 5 | . 1 . 1 3 Catastrophic 2 | . 1 . . 1 Database Lockouts . | . . . . . Manual 5 | . 1 1 1 2 Terminals 6 | . 2 . 1 3 Fabricators . | . . . . . Repair Stations . | . . . . . Recycling Units . | . . . . . Scanalyzers . | . . . . . Garrison Access . | . . . . . Terminal Hacks 1 | . 1 . . . Recall Investigation 1 | . 1 . . . Fabricator Hacks . | . . . . . Repair Station Hacks . | . . . . . Recycling Unit Hacks . | . . . . . Scanalyzer . | . . . . . Garrison Access Hacks . | . . . . . Unauthorized Hacks . | . . . . . Terminals . | . . . . . Fabricators . | . . . . . Repair Stations . | . . . . . Recycling Units . | . . . . . Scanalyzers . | . . . . . Garrison Access . | . . . . . Data Cores Recovered . | . . . . . Used . | . . . . . Hacking Detections 3 | . 1 . 1 1 Full Trace Events 1 | . . . . 1 Feedback Events . | . . . . . Feedback Blocked . | . . . . . Robot Schematics Acquired . | . . . . . Robots Built . | . . . . . Authchips . | . . . . . Time . | . . . . . Total Robot Build Rating . | . . . . . Part Schematics Acquired . | . . . . . Parts Built . | . . . . . Authchips . | . . . . . Time . | . . . . . Total Part Build Rating . | . . . . . Parts Repaired . | . . . . . Time . | . . . . . Parts Recycled . | . . . . . Recycled Matter . | . . . . . Retrieved Matter . | . . . . . Retrieved Components . | . . . . . Parts Scanalyzed . | . . . . . Part Schematics Acquired . | . . . . . Parts Damaged . | . . . . . Bothacking | -11 -10 -9 -9 -8 ------------ Run | Yrd Mat Mat Sto Mat Used RIF Installer . | . . . . . Robots Hacked . | . . . . . Non-combat . | . . . . . Combat . | . . . . . Robot Hacks Applied . | . . . . . Relay Couplers Released . | . . . . . Fabnet Peak Effective % . | . . . . . Robots Rewired . | . . . . . Allies Hacked . | . . . . . Hacks Repelled . | . . . . . Allies | -11 -10 -9 -9 -8 -------- Run | Yrd Mat Mat Sto Mat Total Allies . | . . . . . Largest Group . | . . . . . Highest-Rated Group . | . . . . . Highest-Rated Ally . | . . . . . Total Orders . | . . . . . Ally Attacks . | . . . . . Total Damage . | . . . . . Kills . | . . . . . Allies Corrupted . | . . . . . Allies Melted . | . . . . . Intel | -11 -10 -9 -9 -8 ------- Run | Yrd Mat Mat Sto Mat Active Infowar (turns) 368 | . 136 57 60 115 Terrain 197 | . . 57 60 80 Structural 136 | . 136 . . . ECM 105 | . . . . 105 Robot Analysis Total . | . . . . . Derelict Logs Recovered . | . . . . . Drone Launches . | . . . . . Drone Recoveries . | . . . . . Exploration | -11 -10 -9 -9 -8 ------------- Run | Yrd Mat Mat Sto Mat Turns Passed 535 | 69 229 61 60 116 Spaces Moved 641 | 51 149 151 158 132 Core 23 | 3 1 . . 19 Treads . | . . . . . Legs 167 | 48 114 . . 5 Wheels . | . . . . . Hover . | . . . . . Flight 451 | . 34 151 158 108 Fastest Speed 32 | 50 37 34 34 32 Average Speed 62 | 115 101 35 34 63 Slowest Speed 280 | 120 150 37 34 280 Overloaded Moves . | . . . . . Propulsion Burnouts . | . . . . . Robots Hopped 6 | . 2 . 2 2 Potential Cave-ins . | . . . . . Cave-ins Triggered . | . . . . . Exploration Rate (%) 22 | 3 34 13 42 19 Regions Visited 4 Branch Regions 1 Pre-discovered Areas . | . . . . . Known Exits Taken 1 | . . . 1 . Unknown Exits Taken 3 | 1 1 1 . . Scrap Searched . | . . . . . Spaces Dug . | . . . . . Terrain Destroyed 13 | . . . . 13 Melee . | . . . . . Projectile . | . . . . . AOE 13 | . . . . 13 Terrain Rammed . | . . . . . Walls Destroyed . | . . . . . Machines Disabled . | . . . . . Actions | -11 -10 -9 -9 -8 --------- Run | Yrd Mat Mat Sto Mat Total 707 | 58 180 158 161 150 Wait 3 | . 1 . . 2 Move 626 | 50 145 150 153 128 Hop 5 | . 1 . 2 2 Pick Up 5 | 2 1 1 1 . Fast Attach 20 | 6 4 3 3 4 Attach 5 | . 2 . . 3 Detach 4 | . 2 1 . 1 Swap 1 | . . 1 . . Drop 4 | . . 2 2 . Fire 28 | . 24 . . 4 Melee 5 | . . . . 5 Ram 1 | . . . . 1 Kick . | . . . . . Crush . | . . . . . Escape Stasis . | . . . . . Rewire . | . . . . . Trap . | . . . . . Miscellaneous . | . . . . . Route ------- -11/Scrapyard -10/Materials -9/Materials -9/Storage -8/Materials History --------- Turn | Location | Event 30 | -11/Scrapyard | Discovered new exit (range 16) 70 | -11/Scrapyard | Entered Materials 288 | -10/Materials | Core integrity fell below 50% 297 | -10/Materials | Discovered new exit (range 5) 299 | -10/Materials | Entered another Materials area 299 | -9/Materials | Evolved 2 slots: Utility x2 312 | -9/Materials | Lost 6 parts (1p2n1u2w) 347 | -9/Materials | Discovered new exit (range 6) 350 | -9/Materials | Build established: Mutant 360 | -9/Materials | Entered Storage 415 | -9/Storage | Discovered new exit (range 16) 419 | -9/Storage | Identified exit to Materials 420 | -9/Storage | Entered Materials 420 | -8/Materials | Evolved 2 slots: Propulsion x1, Utility x1 516 | -8/Materials | Core integrity fell below 50% 533 | -8/Materials | Core integrity fell below 20% 536 | -8/Materials | Destroyed by S-10 Pest with Light Assault Rifle Last Messages --------------- Grenade Launcher destroyed. U-05 Engineer lays Concrete. Critical hit (Burn: +37). U-05 Engineer lays Concrete. Acquired Carbon-fiber Leg. U-05 Engineer lays Concrete. R-06 Scavenger collects Wheel. Critical hit (Burn: +37). Acquired Katana. Y-45 Defender Hvy. Assault Rifle severed. U-05 Engineer lays Concrete. R-06 Scavenger collects Terrain Scan Processor. U-05 Engineer lays Concrete. Carbon-fiber Leg destroyed. U-05 Engineer lays Concrete. ECM Suite destroyed. Katana destroyed. U-05 Engineer lays Concrete. Slammed into Y-45 Defender. Destabilizing: Core damaged (-27). Map ----- +----------------------------------------------------+ | ?????????????????????????????????????????????????? | | ?????????????????????????????????????????????????? | | ?????????????????????????????????????????????????? | | ?????????????????????????????????????????????????? | | ???????????????????????????? ????????????????????? | | ?????????????????????#???????????????????????????? | | ????????####?????????????????????????????????????? | | ???????? #????????#????????????????????????????? | | ??? ???? #????????????? ???????????????????????? | | ??# """ #????########?????????????????????????? | | ??# """ #??#?# #?????????????????????????? | | ??# #???## "" #?????????????????????????? | | ??# """ #????# "T #?????????????????????????? | | ??# """ #????# "" #?????????????????????????? | | ??# """ #????# !#?????#???????????????????? | | ??# #????# ##??#????#????????????????? | | ######+#############+########????????????????????? | | #???#????????????????? | | ### #######??????????????? | | u ??????????????? | | u ######??????????????? | | #??????????????? | | u #??????????????? | | su [#??????????????? | | ^ YYss ] ! #??????????????? | | ####+#############/######@# # #??????????????? | | ?????????????# # [g ## ##??????????????? | | ?????????????## T # gY#?? #???????????????? | | ????"?????????# !! # =! #????#???????????????? | | ??????????????# !! # ! #????????????????????? | | ??????????????# !! # #????????????????????? | | ????????????#?#] # [ #????????????????????? | | ??????????????###############????????????????????? | | ????????????????????????#????????????????????????? | | ?????????????????????????????????????????????????? | | ???????????#?????????????????????????????????????? | | ?????????????????????????????????????????????????? | | ?????????????????????????????????????????????????? | | ?????????????????????????????????????????????????? | | ?????????????????????????????????????????????????? | | ?????????????????????????????????????????????????? | | ?????????????????????????????????????????????????? | | ?????????????????????????????????????????????????? | | ?????????????????????????????????????????????????? | | ?????????????????????????????????????????????????? | | ?????????????????????????????????????????????????? | | ?????????????????????????????????????????????????? | | ?????????????????????????????????????????????????? | | ?????????????????????????????????????????????????? | | ?????????????????????????????????????????????????? | +----------------------------------------------------+ Best States ------------- Heat Dissipation 31 Energy Generation 14 Energy Capacity 140 Matter Stores 291 Matter Capacity 300 Sight Range 16 Terrain Scan Range 14 Terrain Scan Density 10 ECM Strength 1 Utility Shielding 66 Evasion (%) 63 Item Schematics ----------------- None Robot Schematics ------------------ None Fabricated ------------ Nothing Repaired ---------- Nothing Alien Tech Used ----------------- None Achievements -------------- None Challenges ------------ None Game ------ Seed NavigationNetworkSheargun Manual? 0 Play Time 00:16:29 Cumulative 7.7 hours Start 2025.08.02 @ 04:15:39 End 2025.08.02 @ 04:41:40 Sessions 2 Manual Loads 0 Difficulty Rogue Special Mode None Game No. 16 Rogue 14 Adventurer 0 Explorer 2 Win Type - Total 0 Types 0/0/0/0/0/0/0/0/0/0 Lore% 9 Gallery% 16 Achievement% 17 Wizard Run 0 Options --------- Layout 1 ASCII 0 Keyboard 0 Movement Numpad Keybinds 0 Fullscreen 1 Font 24/Smallcaps Map View 50x35 Zoom Use 0% Tactical HUD 0 Map Filters NONE Filters NONE Steam 1 RUN: 00b4d2ca-cbf0-435e-a7ba-26420805035b